[Event "XLI Barbera del Valles Open 2018"]
[Site "Barbera del Valles"]
[Date "2018.07.07"]
[Round "4"]
[White "Sauravh, Khherdekar"]
[Black "Aguero Jimenez, Luis Lazaro"]
[Result "1/2-1/2"]
[ECO "D00"]
[WhiteElo "2239"]
[BlackElo "2473"]
[Annotator "ChessBase"]
[PlyCount "88"]
[EventDate "2018.07.04"]
[EventType "swiss"]
[EventCountry "ESP"]
[SourceTitle "playchess.com"]
[Source "ChessBase"]
[SourceQuality "1"]
[TimeControl "5400+30"]

1. d4 {[%emt 0:00:00]} d5 {[%emt 0:00:00]} 2. Bf4 Bf5 {[%emt 0:00:00]} 3. e3 {[%emt 0:00:00]} e6 4. c4 {[%emt 0:00:02]} Bxb1 {[%emt 0:00:00]} 5. Qxb1 {[%emt 0:00:00]} Bb4+ {[%emt 0:09:07]} 6. Kd1 Bd6 {[%emt 0:00:06]} 7. Bxd6 {[%emt 0:02:06]} Qxd6 {[%emt 0:00:12]} 8. c5 {[%emt 0:00:25]} Qe7 {[%emt 0:00:24]} 9. Nf3 {[%emt 0:04:54]} Nd7 {[%emt 0:02:05]} 10. Bd3 {[%emt 0:02:11]} Ngf6 {[%emt 0:01:27]} 11. b4 {[%emt 0:01:14]} e5 {[%emt 0:00:19]} 12. dxe5 {[%emt 0:01:04]} Nxe5 13. Ke2 {[%emt 0:00:08]} Nxf3 {[%emt 0:07:47]} 14. Kxf3 {[%emt 0:01:16]} h5 {[%emt 0:05:59]} 15. h3 {[%emt 0:02:47]} Qe5 {[%emt 0:01:15]} 16. g3 {[%emt 0:00:10]} h4 {[%emt 0:05:14]} 17. g4 {[%emt 0:03:01]} O-O {[%emt 0:30:44]} 18. Kg2 {[%emt 0:02:03]} d4 {[%emt 0:00:11]} 19. e4 {[%emt 0:00:45]} Rfe8 {[%emt 0:00:36]} 20. Qc2 {[%emt 0:04:37]} Qg5 {[%emt 0:00:49]} 21. Qc1 Nxe4 {[%emt 0:03:27]} 22. Bxe4 {[%emt 0:01:14]} Qxc1 {[%emt 0:00:05]} 23. Raxc1 {[%emt 0:00:13]} Rxe4 {[%emt 0:00:31]} 24. Rc4 {[%emt 0:01:16]} Rd8 {[%emt 0:01:30]} 25. Rd1 {[%emt 0:02:05]} g5 {[%emt 0:01:37]} 26. Rd2 c6 {[%emt 0:00:11]} 27. f3 {[%emt 0:01:44]} Rf4 {[%emt 0:07:16]} 28. Kf2 {[%emt 0:00:10]} d3 {[%emt 0:01:26]} 29. Re4 Rxe4 {[%emt 0:00:01]} 30. fxe4 {[%emt 0:00:36]} Rd4 31. a3 {[%emt 0:00:00]} Rxe4 {[%emt 0:00:57]} 32. Rxd3 a5 {[%emt 0:02:27]} 33. bxa5 {[%emt 0:03:06]} Ra4 {[%emt 0:01:36]} 34. Ke3 {[%emt 0:01:08]} Kg7 {[%emt 0:01:28]} 35. Rb3 {[%emt 0:00:30]} Kf6 36. Rxb7 Rxa3+ {[%emt 0:00:39]} 37. Kd4 {[%emt 0:00:36]} Ra4+ {[%emt 0:00:22]} 38. Kc3 {[%emt 0:00:17]} Rxa5 {[%emt 0:15:23]} 39. Kb4 Ra8 {[%emt 0:00:00]} 40. Rc7 {[%emt 0:00:59]} Ra6 {[%emt 0:03:17]} 41. Rb7 {[%emt 0:00:35]} Ra8 42. Rc7 {[%emt 0:00:07]} Ra6 {[%emt 0:01:49]} 43. Rb7 Ra8 44. Rc7 {[%emt 0:00:37]} Ke5 1/2-1/2

[Event "XLI Barbera del Valles Open 2018"]
[Site "Barbera del Valles"]
[Date "2018.07.08"]
[Round "5"]
[White "Ortiz Suarez, Isan Reynaldo"]
[Black "Raghunandan, Kaumandur Srihari"]
[Result "1-0"]
[ECO "B96"]
[WhiteElo "2548"]
[BlackElo "2417"]
[Annotator "ChessBase"]
[PlyCount "67"]
[EventDate "2018.07.04"]
[EventType "swiss"]
[EventCountry "ESP"]
[SourceTitle "playchess.com"]
[Source "ChessBase"]
[SourceQuality "1"]
[TimeControl "5400+30"]

1. e4 {[%emt 0:03:51]} c5 {[%emt 0:00:00]} 2. Nf3 {[%emt 0:00:08]} d6 {[%emt 0:00:00]} 3. d4 {[%emt 0:00:04]} cxd4 {[%emt 0:00:00]} 4. Nxd4 {[%emt 0:00:03]} Nf6 {[%emt 0:00:06]} 5. Nc3 {[%emt 0:00:05]} a6 {[%emt 0:00:06]} 6. Bg5 {[%emt 0:00:06]} e6 {[%emt 0:00:11]} 7. f4 {[%emt 0:00:05]} h6 {[%emt 0:00:06]} 8. Bh4 {[%emt 0:00:30]} Qb6 {[%emt 0:00:12]} 9. a3 {[%emt 0:00:59]} Be7 {[%emt 0:00:17]} 10. Bf2 {[%emt 0:00:24]} Qc7 {[%emt 0:00:08]} 11. Qf3 {[%emt 0:04:29]} Nbd7 {[%emt 0:00:12]} 12. O-O-O {[%emt 0:00:11]} b5 {[%emt 0:00:08]} 13. g4 {[%emt 0:00:19]} g5 {[%emt 0:00:16]} 14. h4 {[%emt 0:00:55]} gxf4 {[%emt 0:00:11]} 15. Be2 {[%emt 0:00:05]} Ne5 {[%emt 0:00:10]} 16. Qxf4 {[%emt 0:00:13]} Nexg4 {[%emt 0:00:19]} 17. Bxg4 {[%emt 0:02:34]} e5 {[%emt 0:00:08]} 18. Qxf6 {[%emt 0:01:57]} Bxf6 {[%emt 0:01:31]} 19. Nd5 {[%emt 0:00:04]} Qd8 {[%emt 0:02:31]} 20. Nf5 {[%emt 0:02:38]} Bxf5 {[%emt 0:09:48]} 21. Bxf5 {[%emt 0:00:12]} Rb8 {[%emt 0:00:21]} 22. Rd3 {[%emt 0:00:40]} h5 {[%emt 0:50:29]} 23. Rc3 {[%emt 0:05:57]} Bg7 {[%emt 0:00:10]} 24. Rg1 {[%emt 0:04:47]} Kf8 {[%emt 0:01:45]} 25. Kb1 {[%emt 0:03:01]} Rh6 {[%emt 0:04:24]} 26. Rcg3 {[%emt 0:02:21]} Rg6 {[%emt 0:00:12]} 27. Bxg6 {[%emt 0:00:40]} fxg6 {[%emt 0:00:10]} 28. Rxg6 {[%emt 0:00:16]} Rb7 {[%emt 0:00:14]} 29. Bb6 {[%emt 0:16:12]} Qb8 {[%emt 0:07:39]} 30. Be3 {[%emt 0:05:22]} a5 {[%emt 0:13:24]} 31. Rxg7 {[%emt 0:00:36]} Rxg7 {[%emt 0:00:09]} 32. Bh6 {[%emt 0:00:03]} Qa7 {[%emt 0:01:17]} 33. Rxg7 {[%emt 0:00:30]} Qd4 {[%emt 0:00:06]} 34. Rd7+ {[%emt 0:00:20]} 1-0

[Event "XLI Barbera del Valles Open 2018"]
[Site "Barbera del Valles"]
[Date "2018.07.08"]
[Round "5"]
[White "Martinez Alcantara, Jose Eduardo"]
[Black "Iniyan, P."]
[Result "0-1"]
[ECO "E63"]
[WhiteElo "2545"]
[BlackElo "2451"]
[Annotator "ChessBase"]
[PlyCount "87"]
[EventDate "2018.07.04"]
[EventType "swiss"]
[EventCountry "ESP"]
[SourceTitle "playchess.com"]
[Source "ChessBase"]
[SourceQuality "1"]
[TimeControl "5400+30"]

1. Nf3 {[%emt 0:03:37]} Nf6 {[%emt 0:00:08]} 2. c4 {[%emt 0:00:04]} g6 {[%emt 0:00:17]} 3. g3 {[%emt 0:00:05]} Bg7 {[%emt 0:00:08]} 4. d4 {[%emt 0:00:06]} O-O {[%emt 0:00:17]} 5. Bg2 {[%emt 0:00:03]} d6 {[%emt 0:00:07]} 6. O-O {[%emt 0:00:06]} Nc6 {[%emt 0:00:07]} 7. Nc3 {[%emt 0:00:04]} a6 {[%emt 0:00:06]} 8. Bf4 {[%emt 0:00:05]} Rb8 {[%emt 0:01:19]} 9. Rc1 {[%emt 0:00:05]} b5 {[%emt 0:00:56]} 10. Nd5 {[%emt 0:11:26]} Nh5 {[%emt 0:01:36]} 11. Bg5 {[%emt 0:04:44]} h6 {[%emt 0:06:26]} 12. Be3 {[%emt 0:00:44]} Bd7 {[%emt 0:03:48]} 13. b3 {[%emt 0:06:08]} e6 {[%emt 0:16:59]} 14. cxb5 {[%emt 0:08:49]} axb5 {[%emt 0:04:45]} 15. Nc3 {[%emt 0:00:01]} b4 {[%emt 0:09:53]} 16. Na4 {[%emt 0:00:17]} Nf6 {[%emt 0:00:07]} 17. Bd2 {[%emt 0:07:25]} Ne4 {[%emt 0:02:46]} 18. Be1 {[%emt 0:00:16]} f5 {[%emt 0:00:49]} 19. Nd2 {[%emt 0:08:45]} Nxd4 {[%emt 0:16:21]} 20. e3 {[%emt 0:02:48]} Bxa4 {[%emt 0:01:05]} 21. Nxe4 {[%emt 0:07:23]} Bb5 {[%emt 0:00:08]} 22. exd4 {[%emt 0:00:02]} fxe4 {[%emt 0:00:33]} 23. Bxe4 {[%emt 0:00:26]} Bxf1 {[%emt 0:07:41]} 24. Kxf1 {[%emt 0:00:04]} Qg5 {[%emt 0:06:18]} 25. d5 {[%emt 0:22:59]} Bd4 {[%emt 0:09:51]} 26. Rc2 {[%emt 0:13:23]} e5 {[%emt 0:05:19]} 27. Kg2 {[%emt 0:01:33]} Rf7 {[%emt 0:00:36]} 28. h4 {[%emt 0:00:31]} Qf6 {[%emt 0:00:08]} 29. Qd3 {[%emt 0:01:33]} Kg7 {[%emt 0:00:10]} 30. f3 {[%emt 0:00:17]} Bc5 {[%emt 0:01:07]} 31. Kh3 {[%emt 0:00:47]} Rbf8 {[%emt 0:00:53]} 32. Bd2 {[%emt 0:00:26]} g5 {[%emt 0:00:22]} 33. Bc1 {[%emt 0:00:33]} gxh4 {[%emt 0:00:15]} 34. g4 {[%emt 0:00:10]} Qxf3+ {[%emt 0:00:08]} 35. Qxf3 {[%emt 0:00:11]} Rxf3+ {[%emt 0:00:04]} 36. Bxf3 {[%emt 0:00:08]} Rxf3+ {[%emt 0:00:05]} 37. Kh2 {[%emt 0:00:36]} Rd3 {[%emt 0:00:20]} 38. Rd2 {[%emt 0:00:36]} Rxd2+ {[%emt 0:03:04]} 39. Bxd2 {[%emt 0:00:00]} e4 {[%emt 0:00:10]} 40. Be1 {[%emt 0:00:28]} Kf6 {[%emt 0:00:29]} 41. Kh3 {[%emt 0:00:23]} Kg5 {[%emt 0:00:25]} 42. Bxh4+ {[%emt 0:01:46]} Kf4 {[%emt 0:00:06]} 43. Bf6 {[%emt 0:00:02]} e3 {[%emt 0:00:27]} 44. Bg7 {[%emt 0:00:03] Ke5} 0-1

[Event "XLI Barbera del Valles Open 2018"]
[Site "Barbera del Valles"]
[Date "2018.07.08"]
[Round "5"]
[White "Asis, Tommy"]
[Black "Mohammad Nubairshah Shaikh"]
[Result "1/2-1/2"]
[ECO "B43"]
[WhiteElo "2538"]
[BlackElo "2441"]
[Annotator "ChessBase"]
[PlyCount "49"]
[EventDate "2018.07.04"]
[EventType "swiss"]
[EventCountry "ESP"]
[SourceTitle "playchess.com"]
[Source "ChessBase"]
[SourceQuality "1"]
[TimeControl "5400+30"]

1. e4 {[%emt 0:11:36]} c5 {[%emt 0:00:00]} 2. Nf3 {[%emt 0:00:20]} e6 {[%emt 0:00:00]} 3. d4 {[%emt 0:00:35]} cxd4 {[%emt 0:00:00]} 4. Nxd4 {[%emt 0:00:05]} a6 {[%emt 0:00:00]} 5. Nc3 {[%emt 0:00:10]} Qc7 {[%emt 0:00:01]} 6. Bd3 {[%emt 0:00:16]} Nf6 {[%emt 0:00:29]} 7. f4 {[%emt 0:03:29]} b5 {[%emt 0:01:46]} 8. e5 {[%emt 0:01:50]} b4 {[%emt 0:00:02]} 9. Ne4 {[%emt 0:00:03]} Nxe4 {[%emt 0:00:47]} 10. Bxe4 {[%emt 0:00:05]} Bb7 {[%emt 0:00:02]} 11. Qf3 {[%emt 0:00:07]} Nc6 {[%emt 0:01:08]} 12. Nxc6 {[%emt 0:00:30]} Bxc6 {[%emt 0:01:29]} 13. Bxc6 {[%emt 0:00:06]} Qxc6 {[%emt 0:00:02]} 14. Qxc6 {[%emt 0:00:07]} dxc6 {[%emt 0:00:02]} 15. Be3 {[%emt 0:00:20]} O-O-O {[%emt 0:08:33]} 16. Ke2 {[%emt 0:01:26]} Be7 {[%emt 0:06:23]} 17. Bb6 {[%emt 0:18:35]} Rd5 {[%emt 0:07:34]} 18. c4 {[%emt 0:01:25]} bxc3 {[%emt 0:03:18]} 19. bxc3 {[%emt 0:01:40]} c5 {[%emt 0:14:36]} 20. Rhd1 {[%emt 0:10:16]} Kd7 {[%emt 0:01:56]} 21. c4 {[%emt 0:21:39]} Rxd1 {[%emt 0:00:03]} 22. Rxd1+ {[%emt 0:00:04]} Kc6 {[%emt 0:00:05]} 23. Ba5 {[%emt 0:00:03]} Rb8 {[%emt 0:00:22]} 24. Bc3 {[%emt 0:00:04]} f5 {[%emt 0:07:28]} 25. Kf3 {[%emt 0:11:11]} 1/2-1/2

[Event "XLI Barbera del Valles Open 2018"]
[Site "Barbera del Valles"]
[Date "2018.07.08"]
[Round "5"]
[White "Karthik Venkataraman"]
[Black "Sauravh, Khherdekar"]
[Result "1-0"]
[ECO "C10"]
[WhiteElo "2514"]
[BlackElo "2239"]
[Annotator "ChessBase"]
[PlyCount "75"]
[EventDate "2018.07.04"]
[EventType "swiss"]
[EventCountry "ESP"]
[SourceTitle "playchess.com"]
[Source "ChessBase"]
[SourceQuality "1"]
[TimeControl "5400+30"]

1. e4 {[%emt 0:00:00]} e6 {[%emt 0:00:00]} 2. d4 {[%emt 0:00:00]} d5 {[%emt 0:00:00]} 3. Nc3 {[%emt 0:00:00]} Nc6 {[%emt 0:00:00]} 4. e5 {[%emt 0:00:09]} f6 {[%emt 0:00:23]} 5. Bb5 {[%emt 0:01:55]} Bd7 {[%emt 0:00:24]} 6. Nf3 {[%emt 0:00:07]} Qe7 {[%emt 0:00:38]} 7. O-O {[%emt 0:01:09]} Qf7 8. Re1 {[%emt 0:03:47]} O-O-O {[%emt 0:00:40]} 9. Qe2 {[%emt 0:01:24]} Re8 {[%emt 0:01:35]} 10. a4 {[%emt 0:02:15]} Bb4 {[%emt 0:00:41]} 11. Bd2 {[%emt 0:00:04]} Nge7 {[%emt 0:01:34]} 12. a5 {[%emt 0:04:09]} Ng6 13. Bxc6 {[%emt 0:08:06]} Bxc6 {[%emt 0:09:38]} 14. Na2 Bxd2 {[%emt 0:01:18]} 15. Qxd2 {[%emt 0:00:10]} fxe5 {[%emt 0:03:15]} 16. Nxe5 {[%emt 0:00:45]} Nxe5 {[%emt 0:00:18]} 17. Rxe5 {[%emt 0:00:04]} Rhf8 {[%emt 0:00:12]} 18. Rae1 {[%emt 0:00:06]} Qf4 {[%emt 0:02:12]} 19. R1e3 {[%emt 0:01:09]} Rf6 {[%emt 0:11:13]} 20. Nb4 {[%emt 0:02:02]} Rh6 {[%emt 0:01:26]} 21. g3 {[%emt 0:01:11]} Qg4 {[%emt 0:00:35]} 22. f3 {[%emt 0:00:43]} Qh3 {[%emt 0:01:07]} 23. Qf2 {[%emt 0:02:38]} Rf8 {[%emt 0:03:07]} 24. a6 {[%emt 0:05:53]} Bb5 25. axb7+ {[%emt 0:00:48]} Kxb7 {[%emt 0:05:25]} 26. b3 {[%emt 0:00:05]} a5 27. Na2 Rff6 {[%emt 0:06:35]} 28. c4 {[%emt 0:00:52]} Bc6 {[%emt 0:00:27]} 29. Nc3 {[%emt 0:00:11]} dxc4 {[%emt 0:01:08]} 30. bxc4 {[%emt 0:00:06]} Kc8 {[%emt 0:01:14]} 31. d5 {[%emt 0:02:36]} exd5 {[%emt 0:03:34]} 32. cxd5 {[%emt 0:00:42]} Bd7 {[%emt 0:00:47]} 33. Ne4 {[%emt 0:02:20]} Rb6 {[%emt 0:00:28]} 34. Re1 Rh5 {[%emt 0:07:42]} 35. Rc1 {[%emt 0:09:22]} Kb8 {[%emt 0:04:31]} 36. Qc2 {[%emt 0:05:07]} Rb7 {[%emt 0:01:13]} 37. Nc5 {[%emt 0:02:52]} Rb6 {[%emt 0:04:20]} 38. Rxh5 {[%emt 0:00:17]} 1-0

[Event "XLI Barbera del Valles Open 2018"]
[Site "Barbera del Valles"]
[Date "2018.07.08"]
[Round "5"]
[White "Alsina Leal, Daniel"]
[Black "Perez Mitjans, Orelvis"]
[Result "0-1"]
[ECO "C05"]
[WhiteElo "2492"]
[BlackElo "2399"]
[Annotator "ChessBase"]
[PlyCount "102"]
[EventDate "2018.07.04"]
[EventType "swiss"]
[EventCountry "ESP"]
[SourceTitle "playchess.com"]
[Source "ChessBase"]
[SourceQuality "1"]
[TimeControl "5400+30"]

1. e4 e6 {[%emt 0:04:33]} 2. d4 {[%emt 0:03:59]} d5 {[%emt 0:00:06]} 3. Nd2 {[%emt 0:00:23]} Nf6 {[%emt 0:00:08]} 4. e5 {[%emt 0:00:24]} Nfd7 {[%emt 0:00:05]} 5. Bd3 {[%emt 0:00:16]} b6 {[%emt 0:00:10]} 6. Nh3 {[%emt 0:01:21]} Ba6 {[%emt 0:00:14]} 7. Bxa6 {[%emt 0:00:33]} Nxa6 {[%emt 0:00:05]} 8. O-O {[%emt 0:01:23]} c5 {[%emt 0:00:14]} 9. c3 {[%emt 0:00:06]} b5 {[%emt 0:03:15]} 10. Qg4 {[%emt 0:06:52]} c4 {[%emt 0:12:38]} 11. Nf3 {[%emt 0:05:17]} Nb6 {[%emt 0:03:00]} 12. Nf4 {[%emt 0:10:00]} g6 {[%emt 0:09:55]} 13. b3 {[%emt 0:09:58]} Qd7 {[%emt 0:08:07]} 14. bxc4 {[%emt 0:09:08]} Nxc4 {[%emt 0:00:22]} 15. Nd3 {[%emt 0:03:50]} Rc8 {[%emt 0:05:53]} 16. Rb1 {[%emt 0:13:22]} Nb6 {[%emt 0:07:12]} 17. Rb3 {[%emt 0:02:21]} Na4 {[%emt 0:01:02]} 18. Bd2 {[%emt 0:01:15]} Rc4 {[%emt 0:01:53]} 19. h4 {[%emt 0:05:49]} h5 {[%emt 0:01:38]} 20. Qh3 {[%emt 0:06:18]} Bh6 {[%emt 0:20:51]} 21. Bxh6 {[%emt 0:06:15]} Rxh6 {[%emt 0:00:08]} 22. Ng5 {[%emt 0:00:59]} Nc7 {[%emt 0:02:42]} 23. Nb2 {[%emt 0:05:14]} Nxb2 {[%emt 0:00:11]} 24. Rxb2 {[%emt 0:00:03]} Kf8 {[%emt 0:05:38]} 25. Rd2 {[%emt 0:00:42]} Ne8 {[%emt 0:00:47]} 26. Qe3 {[%emt 0:03:00]} Rh8 {[%emt 0:00:22]} 27. f3 {[%emt 0:00:43]} Kg7 {[%emt 0:01:15]} 28. g4 {[%emt 0:00:55]} Qe7 {[%emt 0:01:13]} 29. Rg2 {[%emt 0:00:57]} Nc7 {[%emt 0:00:20]} 30. Kh2 {[%emt 0:01:57]} Na8 {[%emt 0:01:15]} 31. Rfg1 {[%emt 0:00:46]} Nb6 {[%emt 0:00:16]} 32. Qf4 {[%emt 0:01:04]} Kf8 {[%emt 0:01:29]} 33. gxh5 {[%emt 0:00:31]} Rxh5 {[%emt 0:00:06]} 34. Kh3 {[%emt 0:00:45]} Ke8 {[%emt 0:00:23]} 35. Qd2 {[%emt 0:00:32]} Na4 {[%emt 0:00:34]} 36. Rb1 {[%emt 0:00:22]} Nxc3 {[%emt 0:05:30]} 37. Rb3 {[%emt 0:00:04]} b4 {[%emt 0:00:54]} 38. a3 {[%emt 0:00:10]} a5 {[%emt 0:00:01]} 39. axb4 {[%emt 0:00:05]} axb4 {[%emt 0:00:02]} 40. Rg4 {[%emt 0:00:18]} Qa7 {[%emt 0:02:53]} 41. Qb2 {[%emt 0:01:26]} Nd1 {[%emt 0:01:47]} 42. Qd2 {[%emt 0:00:30]} Qa1 {[%emt 0:00:11]} 43. Rg1 {[%emt 0:01:00]} Rxd4 {[%emt 0:00:06]} 44. Qe1 {[%emt 0:00:34]} Rdxh4+ {[%emt 0:00:35]} 45. Qxh4 {[%emt 0:00:31]} Rxh4+ {[%emt 0:00:09]} 46. Kxh4 {[%emt 0:00:03]} Qa2 {[%emt 0:01:13]} 47. Rxb4 {[%emt 0:00:23]} Qf2+ {[%emt 0:00:28]} 48. Rg3 {[%emt 0:00:09]} Ne3 {[%emt 0:00:04]} 49. Rb8+ {[%emt 0:00:57]} Kd7 {[%emt 0:00:05]} 50. Rb7+ {[%emt 0:00:34]} Kc6 {[%emt 0:00:27]} 51. Rxf7 {[%emt 0:00:20]} Nf1 {[%emt 0:00:22]} 0-1

[Event "XLI Barbera del Valles Open 2018"]
[Site "Barbera del Valles"]
[Date "2018.07.08"]
[Round "5"]
[White "Aguero Jimenez, Luis Lazaro"]
[Black "Kumar, Gaurav"]
[Result "1-0"]
[ECO "C85"]
[WhiteElo "2473"]
[BlackElo "2074"]
[Annotator "ChessBase"]
[PlyCount "143"]
[EventDate "2018.07.04"]
[EventType "swiss"]
[EventCountry "ESP"]
[SourceTitle "playchess.com"]
[Source "ChessBase"]
[SourceQuality "1"]
[TimeControl "5400+30"]

1. e4 {[%emt 0:00:00]} e5 {[%emt 0:00:00]} 2. Nf3 {[%emt 0:00:00]} Nc6 {[%emt 0:00:00]} 3. Bb5 {[%emt 0:00:00]} a6 {[%emt 0:00:00]} 4. Ba4 {[%emt 0:00:00]} Nf6 {[%emt 0:00:02]} 5. O-O {[%emt 0:00:00]} Be7 {[%emt 0:00:10]} 6. Bxc6 {[%emt 0:00:00]} dxc6 {[%emt 0:00:17]} 7. Nc3 Nd7 {[%emt 0:01:40]} 8. d4 {[%emt 0:00:03]} exd4 {[%emt 0:00:06]} 9. Nxd4 {[%emt 0:00:00]} O-O {[%emt 0:02:41]} 10. Qe2 {[%emt 0:00:09]} Re8 {[%emt 0:14:32]} 11. Bf4 {[%emt 0:03:45]} Bd6 {[%emt 0:00:45]} 12. Bxd6 {[%emt 0:03:14]} cxd6 {[%emt 0:20:10]} 13. Qd2 {[%emt 0:00:34]} Ne5 {[%emt 0:05:50]} 14. b3 {[%emt 0:04:40]} Qh4 {[%emt 0:04:48]} 15. f4 {[%emt 0:01:38]} Ng4 {[%emt 0:16:44]} 16. Nf3 Qh6 {[%emt 0:02:01]} 17. Rae1 {[%emt 0:44:13]} f5 {[%emt 0:02:03]} 18. h3 {[%emt 0:09:17]} Nf6 19. e5 {[%emt 0:00:05]} dxe5 {[%emt 0:08:22]} 20. fxe5 {[%emt 0:00:01]} Qxd2 {[%emt 0:01:29]} 21. Nxd2 Nh5 {[%emt 0:06:15]} 22. Nc4 {[%emt 0:00:42]} f4 {[%emt 0:00:07]} 23. Nd6 {[%emt 0:11:51]} Re7 {[%emt 0:02:31]} 24. Ne2 {[%emt 0:00:07]} g5 {[%emt 0:02:01]} 25. Nd4 {[%emt 0:00:15]} Ng3 {[%emt 0:00:42]} 26. Rf2 {[%emt 0:00:09]} c5 {[%emt 0:00:19]} 27. Nf3 {[%emt 0:00:49]} h6 {[%emt 0:02:57]} 28. Nd2 {[%emt 0:01:04]} Bf5 {[%emt 0:02:16]} 29. Nf1 Bg6 {[%emt 0:00:02]} 30. Nxg3 {[%emt 0:00:50]} fxg3 {[%emt 0:00:20]} 31. Rf3 {[%emt 0:06:47]} Rd8 32. Ree3 {[%emt 0:00:02]} Bxc2 {[%emt 0:02:24]} 33. Rxg3 {[%emt 0:01:00]} b6 {[%emt 0:00:35]} 34. h4 {[%emt 0:04:25]} Rg7 {[%emt 0:02:03]} 35. Rc3 {[%emt 0:01:43]} Bb1 {[%emt 0:02:00]} 36. hxg5 {[%emt 0:00:17]} hxg5 37. Rc1 {[%emt 0:00:05]} Bh7 {[%emt 0:01:06]} 38. Rc4 {[%emt 0:02:20]} Kf8 {[%emt 0:00:53]} 39. a4 {[%emt 0:01:14]} a5 {[%emt 0:00:29]} 40. Rcg4 {[%emt 0:02:21]} Bc2 {[%emt 0:00:06]} 41. Rc4 {[%emt 0:01:19]} Bb1 {[%emt 0:00:07]} 42. Rc1 {[%emt 0:01:02]} Bh7 {[%emt 0:00:50]} 43. Rf1+ {[%emt 0:01:36]} Ke7 {[%emt 0:01:08]} 44. Rf6 {[%emt 0:00:57]} Bc2 {[%emt 0:00:31]} 45. Rc3 {[%emt 0:01:26]} Bh7 {[%emt 0:00:27]} 46. Rh3 {[%emt 0:00:35]} Bc2 {[%emt 0:00:31]} 47. Rhh6 {[%emt 0:01:58]} Rdg8 {[%emt 0:00:35]} 48. Re6+ {[%emt 0:00:47]} Kd8 {[%emt 0:00:28]} 49. Nc4 {[%emt 0:00:30]} Rg6 {[%emt 0:00:13]} 50. Rxb6 {[%emt 0:00:02]} Rxh6 {[%emt 0:00:20]} 51. Rxh6 {[%emt 0:00:14]} Bxb3 {[%emt 0:00:55]} 52. Nxa5 {[%emt 0:00:05]} Bxa4 53. Nb7+ {[%emt 0:00:01]} Kc7 {[%emt 0:00:56]} 54. Nxc5 {[%emt 0:01:19]} Bc6 {[%emt 0:00:35]} 55. Ne6+ {[%emt 0:00:13]} Kb7 {[%emt 0:00:24]} 56. Nd4 {[%emt 0:01:22]} Be4 {[%emt 0:00:42]} 57. Rd6 {[%emt 0:00:24]} g4 {[%emt 0:00:29]} 58. g3 {[%emt 0:00:23]} Re8 {[%emt 0:00:26]} 59. e6 {[%emt 0:00:19]} Kc7 {[%emt 0:00:15]} 60. Nb5+ {[%emt 0:00:24]} Kb7 {[%emt 0:00:28]} 61. Rd4 {[%emt 0:00:50]} Kb6 {[%emt 0:00:01]} 62. Nd6 {[%emt 0:00:30]} Kc5 {[%emt 0:00:03]} 63. Nxe8 {[%emt 0:00:30]} Kxd4 {[%emt 0:00:43]} 64. e7 {[%emt 0:00:00]} Ke3 {[%emt 0:00:05]} 65. Nc7 Bc6 {[%emt 0:00:02]} 66. e8=Q+ {[%emt 0:00:37]} Bxe8 {[%emt 0:00:02]} 67. Nxe8 {[%emt 0:00:00]} Kf3 {[%emt 0:00:05]} 68. Kh2 {[%emt 0:00:00]} Kf2 {[%emt 0:00:03]} 69. Nf6 Kf3 {[%emt 0:00:05]} 70. Nh5 {[%emt 0:00:28]} Kf2 71. Nf4 {[%emt 0:00:01]} Kf3 {[%emt 0:00:39]} 72. Ng6 1-0

[Event "XLI Barbera del Valles Open 2018"]
[Site "Barbera del Valles"]
[Date "2018.07.08"]
[Round "5"]
[White "Saptorshi, Gupta"]
[Black "Oliva Castaneda, Kevel"]
[Result "0-1"]
[ECO "B23"]
[WhiteElo "2091"]
[BlackElo "2491"]
[Annotator "ChessBase"]
[PlyCount "90"]
[EventDate "2018.07.04"]
[EventType "swiss"]
[EventCountry "ESP"]
[SourceTitle "playchess.com"]
[Source "ChessBase"]
[SourceQuality "1"]
[TimeControl "5400+30"]

1. e4 c5 2. Ne2 Nc6 3. Nbc3 e6 4. g3 Nf6 5. Bg2 Be7 6. d4 cxd4 7. Nxd4 O-O 8. O-O d5 9. Be3 Ne5 10. exd5 exd5 11. Bg5 Nc4 12. Rb1 Nb6 13. Nde2 Bf5 14. Nf4 d4 15. Bxf6 Bxf6 16. Ncd5 Rc8 17. Rc1 Nxd5 18. Nxd5 Bg5 19. f4 Bf6 20. Re1 Rc5 21. Nxf6+ Qxf6 22. Be4 Be6 23. Qd3 g6 24. Rcd1 Rd8 25. c3 Bxa2 26. cxd4 Rc4 27. d5 Qxb2 28. d6 Qb6+ 29. Kh1 Rc5 30. Bg2 Be6 31. Qd4 Rb5 32. Qd3 Rb3 33. Qd2 Rb2 34. Qc3 Qf2 35. Qf3 Qxf3 36. Bxf3 Rb6 37. Ra1 a6 38. Red1 h5 39. Kg1 Kf8 40. Rd4 Ke8 41. Rad1 Kd7 42. Rc1 Rc8 43. Rxc8 Kxc8 44. Rd2 Kd7 45. Rc2 Kxd6 0-1

[Event "XLI Barbera del Valles Open 2018"]
[Site "Barbera del Valles"]
[Date "2018.07.08"]
[Round "5"]
[White "Kadam Om, Manish"]
[Black "Torre, Eugenio"]
[Result "1/2-1/2"]
[ECO "C55"]
[WhiteElo "1836"]
[BlackElo "2460"]
[Annotator "ChessBase"]
[PlyCount "59"]
[EventDate "2018.07.04"]
[EventType "swiss"]
[EventCountry "ESP"]
[SourceTitle "playchess.com"]
[Source "ChessBase"]
[SourceQuality "1"]
[TimeControl "5400+30"]

1. e4 {[%emt 0:04:55]} e5 {[%emt 0:00:00]} 2. Nf3 {[%emt 0:00:55]} Nc6 {[%emt 0:00:00]} 3. Bc4 {[%emt 0:00:05]} Nf6 {[%emt 0:00:04]} 4. d3 {[%emt 0:00:08]} Be7 {[%emt 0:00:20]} 5. O-O {[%emt 0:00:14]} O-O {[%emt 0:00:10]} 6. Re1 {[%emt 0:00:23]} d6 {[%emt 0:00:12]} 7. a4 {[%emt 0:00:06]} Na5 {[%emt 0:00:42]} 8. Ba2 {[%emt 0:00:11]} c5 {[%emt 0:00:07]} 9. c3 {[%emt 0:02:10]} Nc6 {[%emt 0:01:04]} 10. Na3 {[%emt 0:00:20]} a6 {[%emt 0:01:29]} 11. Nc2 {[%emt 0:01:47]} Be6 {[%emt 0:01:46]} 12. Ne3 {[%emt 0:03:02]} Bxa2 {[%emt 0:03:51]} 13. Rxa2 {[%emt 0:00:41]} g6 14. Nd5 {[%emt 0:07:15]} Nxd5 {[%emt 0:06:07]} 15. exd5 {[%emt 0:00:07]} Nb8 {[%emt 0:00:11]} 16. d4 cxd4 {[%emt 0:20:51]} 17. cxd4 {[%emt 0:01:36]} Nd7 {[%emt 0:02:04]} 18. dxe5 {[%emt 0:01:59]} Nxe5 {[%emt 0:00:07]} 19. Nxe5 {[%emt 0:00:06]} dxe5 {[%emt 0:00:08]} 20. Bh6 {[%emt 0:00:52]} Re8 {[%emt 0:07:14]} 21. Rxe5 Qc7 22. Qe2 {[%emt 0:02:01]} Qd7 {[%emt 0:01:51]} 23. Ra1 Bf6 {[%emt 0:05:22]} 24. Rxe8+ {[%emt 0:05:05]} Rxe8 {[%emt 0:00:11]} 25. Qd2 {[%emt 0:00:06]} Rd8 26. Re1 Qxa4 {[%emt 0:08:39]} 27. d6 {[%emt 0:07:21]} Qc6 {[%emt 0:08:47]} 28. d7 {[%emt 0:02:00]} Bg7 {[%emt 0:00:40]} 29. Bxg7 {[%emt 0:02:29]} Kxg7 {[%emt 0:00:05]} 30. Rd1 {[%emt 0:00:12]} 1/2-1/2